Cogmind - Beta 14 @@@ ROGUE MODE // 2024.12.20 @ 16:45:38 Player: abnormality Result: Destroyed by G-47 Trooper with Particle Gun Performance ------------- Evolutions (2) 1000 Regions Visited (5) 1000 Robots Destroyed (39) 195 Value Destroyed (1353) 1353 Prototype IDs (1) 20 Alien Tech Used (0) 0 Bonus (0) 0 TOTAL SCORE: 3568 Bonus ------- None Cogmind --------- Core Integrity 0/550 Matter 300/300 Energy 100/100 System Corruption 0% Temperature Warm (107) Movement Walking (120) Location -8/Materials Parts ------- > --- POWER (2) -------- Backup Power I > --- PROPULSION (4) --- Improved Aluminum Leg > --- UTILITY (3) ------ Medium Storage Unit > --- WEAPON (2) ------- Backup Laser I Backup Laser I > --- INVENTORY (10) --- Improved Aluminum Leg Small Storage Unit Peak State ------------ > --- POWER ------------ Ion Engine Reinforced Ion Engine > --- PROPULSION ------- Improved Aluminum Leg Improved Aluminum Leg Improved Aluminum Leg Improved Aluminum Leg > --- UTILITY ---------- Medium Storage Unit Experimental Sensor Array Seismic Detector > --- WEAPON ----------- Light EM Pulse Cannon Light Assault Rifle > --- INVENTORY -------- Improved Aluminum Leg Improved Aluminum Leg Improved Aluminum Leg Improved Aluminum Leg Small Storage Unit Light EM Pulse Cannon Light Cannon [Rating: 26] Favorites ----------- Power Light Nuclear Core Engine Light Ion Engine Power Core Light Nuclear Core Propulsion Improved Aluminum Leg Leg Improved Aluminum Leg Utility Medium Storage Unit Device Seismic Detector Storage Medium Storage Unit Protection Backup Plating I Weapon Light Cannon Energy Gun EM Pulse Gun Energy Cannon Light EM Pulse Cannon Ballistic Gun Light Assault Rifle Ballistic Cannon Light Cannon Launcher Grenade Launcher Build | -11 -10 -10 -9 -9 -8 ------- Run | Yrd Mat Min Mat Min Mat Slots Evolved 4 | . . . 2 . 2 Power 1 | . . . . . 1 Propulsion 2 | . . . 2 . . Utility 1 | . . . . . 1 Weapon . | . . . . . . Parts Attached 53 | 7 16 4 14 2 10 Power 7 | 1 2 1 1 1 1 Engine 5 | 1 1 . 1 1 1 Core 2 | . 1 1 . . . Reactor . | . . . . . . Propulsion 16 | 2 1 2 7 . 4 Treads . | . . . . . . Leg 16 | 2 1 2 7 . 4 Wheel . | . . . . . . Hover . | . . . . . . Flight . | . . . . . . Utility 5 | 2 1 . . 1 1 Device 3 | 1 . . . 1 1 Storage 2 | 1 1 . . . . Processor . | . . . . . . Hackware . | . . . . . . Protection . | . . . . . . Artifact . | . . . . . . Weapon 25 | 2 12 1 6 . 4 Energy Gun 6 | 2 2 1 1 . . Energy Cannon 4 | . . . 1 . 3 Ballistic Gun 2 | . . . 2 . . Ballistic Cannon 7 | . 4 . 2 . 1 Launcher 6 | . 6 . . . . Special Weapon . | . . . . . . Impact Weapon . | . . . . . . Slashing Weapon . | . . . . . . Piercing Weapon . | . . . . . . Special Melee Weapon . | . . . . . . Unidentified Prototypes 1 | . . . . 1 . Parts Lost 28 | . 2 3 7 . 16 Power 5 | . 1 . 1 . 3 Propulsion 9 | . . 2 1 . 6 Utility 3 | . . . . . 3 Weapon 11 | . 1 1 5 . 4 Highest Loss Streak 12 | . 2 3 2 . 12 To Critical Strikes . | . . . . . . Average Slot Usage (%) 94 | . 99 91 99 100 68 Engine 4 | . 4 . . 11 12 Core 7 | . 9 13 10 . . Leg 33 | . 28 23 43 44 24 Device 11 | . 14 14 11 11 6 Storage 12 | . 14 14 11 11 9 Energy Gun 8 | . 14 10 3 . 4 Energy Cannon 1 | . . . . 11 3 Ballistic Gun 1 | . . . 1 11 3 Ballistic Cannon 7 | . 8 . 14 . . Launcher 3 | . 5 14 . . . Peak Build Rating 26 | 7 11 11 17 24 26 Average Rating 12 | 5 9 9 14 22 15 On Entrance 10 | . 7 8 10 15 24 Naked Turns . | . . . . . . Heaviest Build 32 | 13 22 22 22 26 32 Greatest Support 52 | 20 20 20 52 52 52 Greatest Overweight (x) 7 | . 1 6 . . 7 Average Overweight (x) . | . . 1 . . . Largest Inventory Capacity 10 | 8 10 10 10 10 10 Average Capacity 9 | 7 9 10 10 10 10 Most Carried 10 | 5 10 10 10 10 8 Average Carried 7 | 2 7 9 8 8 4 Final Capacity 10 | 8 10 10 10 10 10 Final Carried 10 | 2 8 7 10 9 2 Class Distribution -------------------- 90% | Mutant 9% | Scavenger-Mutant Dominant Class ---------------- Mutant | -10/Materials Mutant | -10/Mines Mutant | -9/Materials Mutant | -9/Mines Mutant | -8/Materials Resources | -11 -10 -10 -9 -9 -8 ----------- Run | Yrd Mat Min Mat Min Mat Matter Collected 1149 | 270 119 131 293 135 201 Remotely . | . . . . . . Salvage Created 1368 | 107 355 219 339 . 348 Parts 84 | 12 24 13 20 . 15 Haulers Intercepted . | . . . . . . Recyclers Shooed 1 | . 1 . . . . Parts Field Recycled . | . . . . . . Retrieved Matter . | . . . . . . Parts Self-Destructed . | . . . . . . Prevented . | . . . . . . Kills | -11 -10 -10 -9 -9 -8 ------- Run | Yrd Mat Min Mat Min Mat Combat Hostiles Destroyed 29 | . 7 7 9 . 6 Guns 5 | . . 2 1 . 2 Cannons 10 | . 2 . 6 . 2 AOE 12 | . 5 5 2 . . Classes Destroyed 11 | 2 5 2 1 . 1 Worker 1 | . . 1 . . . Builder 3 | . 1 . 1 . 1 Tunneler 2 | 2 . . . . . Recycler 2 | 1 1 . . . . Operator 1 | . 1 . . . . Watcher 2 | . 1 . 1 . . Grunt 21 | . 6 6 5 . 4 Duelist 1 | . . . . . 1 Sentry 5 | . . . 4 . 1 Subdweller 1 | . 1 . . . . Assembled 1 | . . 1 . . . Best Kill Streak 5 | 3 5 5 3 . 4 Combat Bots Only 4 | . 4 4 2 . 4 Max Kills in Single Turn 3 | 1 1 1 3 . 1 Gunslinging . | . . . . . . Exploded 2 | . 1 1 2 . . Melee . | . . . . . . Uniques/NPCs Destroyed . | . . . . . . Combat | -11 -10 -10 -9 -9 -8 -------- Run | Yrd Mat Min Mat Min Mat Hostile Shots Fired 226 | . 20 17 55 . 134 Missed 51 | . 6 3 14 . 28 Damage Taken 3193 | . 436 239 781 . 1737 Core 840 | . 66 28 187 . 559 Absorbed by Shields . | . . . . . . Core Remaining (%) 71 | 100 . 62 . 53 . Volleys Fired 109 | 8 19 9 38 1 34 Largest 2 | 2 2 2 2 2 2 Hottest 91 | 90 75 75 75 76 91 Shots Fired 204 | 13 37 15 73 2 64 Gun 90 | 13 17 8 17 1 34 Cannon 97 | . 11 . 55 1 30 Launcher 17 | . 9 7 1 . . Special . | . . . . . . Kinetic 98 | . 11 . 64 1 22 Thermal 26 | 8 . . . . 18 Explosive 17 | . 9 7 1 . . Electromagnetic 63 | 5 17 8 8 1 24 Robot Hit Streak 11 | 3 8 7 7 9 11 Robot Miss Streak 5 | 2 5 2 2 . 3 Penetration Max . | . . . . . . Secondary Targets 1 | . . . . . 1 Max Gunslinging Chain 1 | . . . . . 1 Shots Hit Robots 105 | 8 17 7 30 2 41 Core Hits 71 | 4 20 18 13 1 15 Critical Kills . | . . . . . . Critical Parts Destroyed . | . . . . . . Critical Strikes 4 | 1 . . 1 . 2 Blast 2 | . . . 1 . 1 Corrupt 2 | 1 . . . . 1 Melee Attacks . | . . . . . . Impact . | . . . . . . Slashing . | . . . . . . Piercing . | . . . . . . Sneak Attacks . | . . . . . . Combat Hostiles . | . . . . . . Follow-up Attacks . | . . . . . . Damage Inflicted 3034 | 104 693 551 960 33 693 Guns 559 | 104 107 76 92 8 172 Cannons 1096 | . 138 . 412 25 521 Explosions 1379 | . 448 475 456 . . Melee . | . . . . . . Ramming . | . . . . . . Kinetic 752 | . 138 . 433 8 173 Thermal 582 | 49 45 49 331 . 108 Explosive 922 | . 371 426 125 . . Electromagnetic 778 | 55 139 76 71 25 412 Impact . | . . . . . . Slashing . | . . . . . . Piercing . | . . . . . . Highest Corruption 3 | . . . 3 3 . Average Corruption 2 | . . . 2 3 . Corruption Purged . | . . . . . . Corruption Blocked . | . . . . . . Effects 11 | . . . 8 3 . Message Errors 4 | . . . 3 1 . Energy Discharges 3 | . . . 1 2 . Parts Rejected 1 | . . . 1 . . Data Loss (minor) 2 | . . . 2 . . Misfires 1 | . . . 1 . . Overload Shots . | . . . . . . Overflow Damage 138 | . 45 15 78 . . Projectiles . | . . . . . . Explosions 138 | . 45 15 78 . . Melee . | . . . . . . Knockbacks 8 | . 2 . 2 . 4 Impact . | . . . . . . Kinetic 7 | . 2 . 2 . 3 Secondary 1 | . . . . . 1 Self-Inflicted Damage 527 | . 245 56 226 . . Shots 13 | . 8 2 3 . . Rammed . | . . . . . . Targets Rammed . | . . . . . . Kicked . | . . . . . . Crushed . | . . . . . . Highest Temperature 459 | 90 135 159 54 30 459 Average Temperature 95 | 45 42 60 17 17 217 Received Heat Transfer 1221 | . 84 102 189 . 846 Effects 9 | . . . . . 9 Shutdowns 4 | . . . . . 4 Energy Bleed 1 | . . . . . 1 Matter Decay 1 | . . . . . 1 Damage (major) 3 | . . . . . 3 Siege Activations . | . . . . . . Robots Corrupted 1 | . . . . . 1 Combat Hostiles 1 | . . . . . 1 Parts Fried 3 | . . . . . 3 Impact Corruptions . | . . . . . . Robots Melted 1 | . . . . . 1 Combat Hostiles 1 | . . . . . 1 Parts Melted 1 | . . . 1 . . Heat Transferred 942 | 148 50 100 200 . 444 Parts Sabotaged . | . . . . . . Parts Stolen . | . . . . . . Parts Stripped . | . . . . . . Power Chain Reactions 3 | . 3 . . . . Alert | -11 -10 -10 -9 -9 -8 ------- Run | Yrd Mat Min Mat Min Mat Peak Influence 330 | 15 306 233 330 131 160 Initial 90 | . 9 21 90 86 50 Average 133 | 5 94 127 229 109 96 Maximum Alert Level 1 | . 1 1 1 . . Low Security (%) 76 | 100 85 88 40 100 100 Level 1 23 | . 14 11 59 . . Level 2 . | . . . . . . Level 3 . | . . . . . . Level 4 . | . . . . . . Level 5 . | . . . . . . High Security . | . . . . . . Max Security . | . . . . . . Squads Dispatched 5 | . 3 . 2 . . Investigation 2 | . 1 . 1 . . Extermination . | . . . . . . Reinforcement 3 | . 2 . 1 . . Assault . | . . . . . . Garrison . | . . . . . . Intercept . | . . . . . . Searches Triggered . | . . . . . . Construction Impeded . | . . . . . . Haulers Reinforced . | . . . . . . Active Scanning Responses . | . . . . . . Cargo Convoy Interrupts . | . . . . . . Stealth | -11 -10 -10 -9 -9 -8 --------- Run | Yrd Mat Min Mat Min Mat Distress Signals 1 | . . . 1 . . Communications Jammed . | . . . . . . Distress Signals . | . . . . . . Times Spotted 55 | . 14 9 14 2 16 Peak Tracking Total 10 | . 3 3 3 3 10 Tactical Retreats 7 | . 1 1 . 2 3 Traps | -11 -10 -10 -9 -9 -8 ------- Run | Yrd Mat Min Mat Min Mat Traps Triggered 4 | . 1 . 3 . . Indirectly . | . . . . . . Trap Hack Attempts . | . . . . . . Triggered . | . . . . . . Disarmed . | . . . . . . Reprogrammed . | . . . . . . Reused . | . . . . . . Traps Extracted . | . . . . . . Installed . | . . . . . . Triggered . | . . . . . . Machines | -11 -10 -10 -9 -9 -8 ---------- Run | Yrd Mat Min Mat Min Mat Machines Disabled 12 | . 6 1 5 . . Max in Single Turn 4 | . 3 1 4 . . Machines Repaired . | . . . . . . Machines Dismantled . | . . . . . . Machines Sabotaged . | . . . . . . Overloaded Fab Kills . | . . . . . . Hacking | -11 -10 -10 -9 -9 -8 --------- Run | Yrd Mat Min Mat Min Mat Machines Accessed 4 | . 2 . 1 . 1 Terminals 3 | . 2 . 1 . . Fabricators . | . . . . . . Repair Stations 1 | . . . . . 1 Recycling Units . | . . . . . . Scanalyzers . | . . . . . . Garrison Access . | . . . . . . Total Hacks 7 | . 3 . 3 . 1 Successful 4 | . 3 . . . 1 Failed 3 | . . . 3 . . Catastrophic 1 | . . . 1 . . Database Lockouts . | . . . . . . Manual . | . . . . . . Terminals 6 | . 3 . 3 . . Fabricators . | . . . . . . Repair Stations 1 | . . . . . 1 Recycling Units . | . . . . . . Scanalyzers . | . . . . . . Garrison Access . | . . . . . . Terminal Hacks 3 | . 3 . . . . Robot Analysis 1 | . 1 . . . . Unreport Threat 1 | . 1 . . . . Transport Status 1 | . 1 . . . . Fabricator Hacks . | . . . . . . Repair Station Hacks 1 | . . . . . 1 Refit 1 | . . . . . 1 Recycling Unit Hacks . | . . . . . . Scanalyzer . | . . . . . . Garrison Access Hacks . | . . . . . . Unauthorized Hacks . | . . . . . . Terminals . | . . . . . . Fabricators . | . . . . . . Repair Stations . | . . . . . . Recycling Units . | . . . . . . Scanalyzers . | . . . . . . Garrison Access . | . . . . . . Data Cores Recovered . | . . . . . . Used . | . . . . . . Hacking Detections 3 | . 1 . 1 . 1 Full Trace Events 1 | . . . 1 . . Feedback Events . | . . . . . . Feedback Blocked . | . . . . . . Robot Schematics Acquired . | . . . . . . Robots Built . | . . . . . . Authchips . | . . . . . . Time . | . . . . . . Total Robot Build Rating . | . . . . . . Part Schematics Acquired . | . . . . . . Parts Built . | . . . . . . Authchips . | . . . . . . Time . | . . . . . . Total Part Build Rating . | . . . . . . Parts Repaired . | . . . . . . Time . | . . . . . . Parts Recycled . | . . . . . . Recycled Matter . | . . . . . . Retrieved Matter . | . . . . . . Retrieved Components . | . . . . . . Parts Scanalyzed . | . . . . . . Part Schematics Acquired . | . . . . . . Parts Damaged . | . . . . . . Bothacking | -11 -10 -10 -9 -9 -8 ------------ Run | Yrd Mat Min Mat Min Mat Used RIF Installer . | . . . . . . Robots Hacked . | . . . . . . Non-combat . | . . . . . . Combat . | . . . . . . Robot Hacks Applied . | . . . . . . Relay Couplers Released . | . . . . . . Fabnet Peak Effective % . | . . . . . . Robots Rewired . | . . . . . . Allies Hacked . | . . . . . . Hacks Repelled . | . . . . . . Allies | -11 -10 -10 -9 -9 -8 -------- Run | Yrd Mat Min Mat Min Mat Total Allies . | . . . . . . Largest Group . | . . . . . . Highest-Rated Group . | . . . . . . Highest-Rated Ally . | . . . . . . Total Orders . | . . . . . . Ally Attacks . | . . . . . . Total Damage . | . . . . . . Kills . | . . . . . . Allies Corrupted . | . . . . . . Allies Melted . | . . . . . . Intel | -11 -10 -10 -9 -9 -8 ------- Run | Yrd Mat Min Mat Min Mat Robot Analysis Total 1 | . 1 . . . . Derelict Logs Recovered 1 | . . . . 1 . Drone Launches . | . . . . . . Drone Recoveries . | . . . . . . Exploration | -11 -10 -10 -9 -9 -8 ------------- Run | Yrd Mat Min Mat Min Mat Turns Passed 2377 | 87 916 201 665 196 312 Spaces Moved 1091 | 48 357 81 316 152 137 Core 27 | 10 . 7 . . 10 Treads . | . . . . . . Legs 1064 | 38 357 74 316 152 127 Wheels . | . . . . . . Hover . | . . . . . . Flight . | . . . . . . Fastest Speed 50 | 50 120 120 120 120 120 Average Speed 138 | 105 158 191 120 120 131 Slowest Speed 400 | 120 190 350 120 120 400 Overloaded Moves . | . . . . . . Propulsion Burnouts . | . . . . . . Robots Hopped . | . . . . . . Cave-ins Triggered . | . . . . . . Exploration Rate (%) 25 | 4 56 14 29 35 14 Regions Visited 5 Branch Regions 2 Pre-discovered Areas 1 | . . 1 . . . Known Exits Taken . | . . . . . . Unknown Exits Taken 5 | 1 1 1 1 1 . Scrap Searched 1 | . . 1 . . . Spaces Dug 12 | . . 12 . . . Terrain Destroyed 189 | . 69 53 67 . . Melee . | . . . . . . Projectile . | . . . . . . AOE 189 | . 69 53 67 . . Terrain Rammed . | . . . . . . Walls Destroyed . | . . . . . . Machines Disabled . | . . . . . . Actions | -11 -10 -10 -9 -9 -8 --------- Run | Yrd Mat Min Mat Min Mat Total 1753 | 71 664 116 530 164 208 Wait 451 | . 263 13 146 5 24 Move 1086 | 47 356 80 315 151 137 Hop . | . . . . . . Pick Up 42 | 9 8 6 15 2 2 Fast Attach . | . . . . . . Attach 34 | 7 4 3 10 . 10 Detach 3 | . 2 . . . 1 Swap 19 | . 12 1 4 2 . Drop 9 | . . 4 2 3 . Fire 109 | 8 19 9 38 1 34 Melee . | . . . . . . Ram . | . . . . . . Kick . | . . . . . . Crush . | . . . . . . Escape Stasis . | . . . . . . Rewire . | . . . . . . Trap . | . . . . . . Miscellaneous . | . . . . . . Route ------- -11/Scrapyard -10/Materials (discovered 2 exits: *Mat / [*Min]) -10/Mines -9/Materials -9/Mines -8/Materials History --------- Turn | Location | Event 22 | -11/Scrapyard | Discovered new exit (range 15) 88 | -11/Scrapyard | Entered Materials 316 | -10/Materials | Build established: Mutant 661 | -10/Materials | Discovered new exit (range 15) 728 | -10/Materials | Discovered new exit (range 14) 788 | -10/Materials | Derelicts attacked the area 1004 | -10/Materials | Entered Mines 1112 | -10/Mines | Discovered new exit (range 13) 1132 | -10/Mines | Assembled infested the area 1137 | -10/Mines | Assisted by a Guerilla fighting off Assembled 1143 | -10/Mines | Lost 3 parts (2n1w) 1191 | -10/Mines | Learned location of Storage (-9) 1205 | -10/Mines | Entered Materials 1205 | -9/Materials | Evolved 2 slots: Propulsion x2 1801 | -9/Materials | Discovered new exit (range 8) 1870 | -9/Materials | Entered Mines 1885 | -9/Mines | Found a damaged Exp. Sensor Array with a note attached 1889 | -9/Mines | Found Prototype Device 1890 | -9/Mines | Identified Exp. Sensor Array 1919 | -9/Mines | Met a Derelict bent on vengeance 1924 | -9/Mines | Learned Materials stockpile data 2056 | -9/Mines | Discovered new exit (range 8) 2066 | -9/Mines | Entered Materials 2066 | -8/Materials | Evolved 2 slots: Power x1, Utility x1 2227 | -8/Materials | Core integrity fell below 50% 2256 | -8/Materials | Core integrity fell below 20% 2260 | -8/Materials | Lost 12 parts (2p4n2u4w) 2378 | -8/Materials | Destroyed by G-47 Trooper with Particle Gun Last Messages --------------- Attaching: Backup Power I x2 Backup Plating I x1 Backup Laser I x2 02321_ K-01 Serf collects debris. 02321_ U-05 Engineer destroyed. 02323_ K-01 Serf collects debris. 02359_ Imp. Aluminum Leg destroyed. 02361_ Backup Power I destroyed. 02364_ Critical hit (Burn: +37). 02367_ G-47 Trooper heat damages Aluminum Leg. 02368_ G-47 Trooper heat short circuits Lgt. Nuclear Core. 02369_ R-06 Scavenger collects Corrupted Lgt. Treads. 02372_ Critical hit (Burn: +37). 02372_ R-06 Scavenger collects Lgt. Armor Plating. 02372_ G-47 Trooper critical meltdown. 02372_ Switching to secondary target: G-47 Trooper. 02376_ Backup Plating I destroyed. 02376_ Imp. Aluminum Leg destroyed. 02377_ R-06 Scavenger collects Wheel. Map ----- +----------------------------------------------------+ | ???????????????????????? ????????????????????????? | | ???????????????????????? ????????????????????????? | | ???????????????????????? ????????????????????????? | | ???????????????????????? #???????????????????????? | | ???????????????????????? #???????????????????????? | | ???????????????????????? #???????????????????????? | | ???????????????????????# #???????????????????????? | | ???????????????????????# ???????????????????????? | | ?????????????#?????????# #???????????????????????? | | ?????????????# ????????# ##########??????????????? | | ?????????????# ???????# # #??????????????? | | ?????????? ??? ??##### # """"" #??????????????? | | ?????????# ###+### # """"" #??????????????? | | ???????? # """"" #??????????????? | | ???????? T + #??????????????? | | ???????? # #??????????????? | | ????????????####+### #! " " #??????????????? | | ???????????????????## ## "R" #??????????????? | | ????????????????????# =## """ #??????????????? | | ????????????????????# |%###########??????????????? | | ????????????????????# !*# ##?????????????? | | ????????????????????# # *** = #?????????????? | | ????????????????????# # !% r** ##?????????????? | | ????????????????????# #! ** #??????????????? | | ????????????????????# %#%gg #??????????????? | | ???????????########## #@%%% #??????????????? | | ???????? ^ % ###m######## ##??????????? | | ??????? ^ % #??????????? | | ??????? +??????????? | | ?????? ^ #??????????? | | ??????################## ####### #??????????? | | ???????????????????????# #?????????#??????????? | | "" ??????????????????????# #????????????????????? | | "" ####################### #????????????????????? | | "" #????????????????????? | | "" #????????????????????? | | #######??????????????? | | #?????????? | | ###+##########!! """ ###### ???????? | | ????? ?# =#!! """ #????????????????????? | | ????#""" # !! #! """ #????????????????????? | | ????#""" # !! # """ #???????????????????[? | | ????#""" # !! # #????????????????????? | | ????# # + #????????????????????? | | ????# ! # [ # #????????????????????? | | ????######## # ########????????????????????? | | ???????????# """ # #???????????????????????????? | | ???????????# """ # #???????????????????????????? | | ???????????# """ # #???????????????????????????? | | ???????????# #####???????????????????????????? | +----------------------------------------------------+ Best States ------------- Heat Dissipation 31 Energy Generation 17 Energy Capacity 415 Matter Stores 300 Matter Capacity 300 Sight Range 16 Robot Scan Range 20 Terrain Scan Density 10 Armor Coverage 80 Evasion (%) 55 Item Schematics ----------------- None Robot Schematics ------------------ None Fabricated ------------ Nothing Alien Tech Used ----------------- None Achievements -------------- None Challenges ------------ None Game ------ Seed ArmorShockAutogun Manual? 0 Play Time 00:25:35 Cumulative 11.0 hours Start 2024.12.20 @ 16:22:53 End 2024.12.20 @ 16:45:38 Sessions 1 Manual Loads 0 Difficulty Rogue Special Mode None Game No. 59 Rogue 59 Adventurer 0 Explorer 0 Win Type - Total 0 Types 0/0/0/0/0/0/0/0/0 Lore% 10 Gallery% 16 Achievement% 19 Wizard Run 0 Options --------- Layout 0 ASCII 0 Keyboard 0 Movement Mouse Keybinds 0 Fullscreen 1 Font 18/SmallcapsGlow Map View 38x25 Zoom Use 100% Tactical HUD 1 Map Filters NONE Filters NONE Steam 1 RUN: 2a6765cb-03d7-4296-9b8d-4cc46efc8f9f